fUST/lending_fUST_20240816
["ID","MTS","AMOUNT","RATE_DAILY","PERIOD"]
[335083367,1723813839663,-298.37089832,0.0003126,2]
[335083368,1723813839672,-1400.0,0.00031305,7]
[335083369,1723813839682,-4920.90783643,0.00031342,2]
[335083370,1723813839692,-66909.2377161,0.00031453,4]
[335083371,1723813839702,-159.21,0.000315,31]
[335083372,1723813839712,-1500.0,0.00031522,7]
[335083373,1723813839722,-4920.90783644,0.00031544,2]
[335083374,1723813839732,-1000.0,0.000316,7]
[335083375,1723813839741,-900.0,0.00031665,7]
[335083376,1723813839751,-1500.0,0.00031713,7]
[335083377,1723813839761,-84371.67964267,0.00031849,30]
[335083378,1723813839770,-6873.679999,0.00031849,120]
[335083379,1723813839780,-160.56535763,0.00031849,30]
[335083380,1723813839790,-240.82074905,0.00031849,120]
[335083381,1723813839799,-70479.30377503,0.00031849,120]
[335083382,1723813839809,-12364.20008234,0.00031849,30]
[335083383,1723813839818,-259.18894282,0.00031849,2]
[335083384,1723813839828,-150.0,0.00031849,14]
[335083385,1723813839838,-200.0,0.00031849,14]
[335083386,1723813839851,-150.0,0.00031849,14]
[335083387,1723813839861,-500.0,0.00031878,2]
[335083388,1723813839872,-505.12022929,0.00031878,2]
[335083389,1723813839882,-66909.2377161,0.0003189,4]
[335083390,1723813839891,-1208.12,0.000319,7]
[335083391,1723813839901,-3605.27,0.000319,14]
[335083392,1723813839910,-68059.43,0.000319,14]
[335083393,1723813839920,-1400.0,0.00032226,7]
[335083394,1723813839930,-500.0,0.00032252,7]
[335083395,1723813839940,-500.0,0.0003232,7]
[335083396,1723813839949,-900.0,0.00032335,7]
[335083397,1723813839959,-1400.0,0.00032514,7]
[335083398,1723813839971,-66909.2377161,0.00032616,4]
[335083399,1723813839980,-900.0,0.00032626,7]
[335083400,1723813839990,-500.0,0.00032658,7]
[335083401,1723813840000,-1500.0,0.00032673,7]
[335083402,1723813840010,-900.0,0.00032784,7]
[335083403,1723813840023,-500.0,0.00032807,7]
[335083404,1723813840032,-1400.0,0.00033015,7]
[335083405,1723813840043,-500.0,0.00033084,7]
[335083406,1723813840053,-1500.0,0.00033084,7]
[335083407,1723813840063,-500.0,0.0003312,7]
[335083408,1723813840072,-1500.0,0.00033151,7]
[335083409,1723813840083,-1500.0,0.00033215,7]
[335083410,1723813840093,-1400.0,0.00033596,7]
[335083411,1723813840107,-900.0,0.00033836,7]
[335083412,1723813840119,-5000.0,0.00033996,14]
[335083413,1723813840128,-1400.0,0.00034187,7]
[335083414,1723813840137,-1400.0,0.00034313,7]
[335083415,1723813840147,-1500.0,0.00034338,7]
[335083416,1723813840156,-1400.0,0.00034448,7]
[335083417,1723813840166,-1400.0,0.00034499,7]
[335083418,1723813840177,-900.0,0.00034575,7]
[335083419,1723813840186,-1208.12,0.000346,30]
[335083420,1723813840196,-3605.27,0.000346,14]
[335083421,1723813840205,-68059.43,0.000346,14]
[335083422,1723813840215,-1400.0,0.00034759,7]
[335083423,1723813840224,-1400.0,0.00035013,7]
[335083424,1723813840234,-1400.0,0.00035075,7]
[335083426,1723813840244,-500.0,0.00035409,7]
[335083427,1723813840254,-1500.0,0.00035518,7]
[335083429,1723813840263,-162.8626633,0.00035616,120]
[335083430,1723813840272,-1400.0,0.00035619,7]
[335083431,1723813840282,-280.7848853,0.00035883,2]
[335083433,1723813840292,-316.4827715,0.00035883,2]
[335083434,1723813840302,-153.0,0.00035883,2]
[335083436,1723813840311,-153.0,0.00035883,2]
[335083437,1723813840321,-153.0,0.00035883,2]
[335083439,1723813840331,-500.0,0.00036249,7]
[335083440,1723813840340,-159.21,0.000365,31]
[335083441,1723813840350,-500.0,0.00036535,7]
[335083444,1723813840358,-1500.0,0.00036657,7]
[335083447,1723813840369,-900.0,0.00036706,7]
[335083448,1723813840378,-1400.0,0.00036786,7]
[335083451,1723813840388,-521.0,0.00036797,2]
[335083452,1723813840397,-1500.0,0.00036818,7]
[335083453,1723813840407,-500.0,0.00036844,7]
[335083455,1723813840416,-1500.0,0.00036951,7]
[335083456,1723813840426,-1400.0,0.00036966,7]
[335083458,1723813840435,-500.0,0.00036974,7]
[335083460,1723813840446,-1500.0,0.00037091,7]
[335083461,1723813840456,-1208.12,0.000371,30]
[335083462,1723813840465,-1413.0,0.00037101,2]
[335083463,1723813840475,-500.0,0.00037124,7]
[335083464,1723813840485,-1400.0,0.00037133,7]
[335083465,1723813840495,-1500.0,0.0003715,7]
[335083466,1723813840504,-165.270853,0.0003726,2]
[335083468,1723813840514,-60535.01510125,0.000373,11]
[335083534,1723814252375,273.37336231,0.00027,120]
[335083535,1723814299200,200.0,0.00020333,14]
[335083536,1723814316029,346.74672462,0.00020333,14]
[335083537,1723814362083,273.37336231,9.9e-05,2]
[335083538,1723814478515,273.37336231,9.9e-05,2]
[335083539,1723814487100,200.0,9.9e-05,2]
[335083540,1723814504022,273.37336231,9.9e-05,2]
[335083541,1723814512009,2451.22306829,9.9e-05,2]
[335083542,1723814513581,3789.42834729,9.9e-05,2]
[335083543,1723814519581,273.37336231,9.9e-05,2]
[335083581,1723814845141,-168.32934345,0.00010544,2]
[335083582,1723814904174,779.85217684,0.00010081,2]
[335083587,1723814949132,-181.12082723,0.00010739,2]
[335083588,1723814949156,-300.0,0.00010761,2]
[335083589,1723814949179,-300.0,0.00010761,2]
[335083590,1723814949202,-5590.08137256,0.00010762,2]
[335083635,1723815031883,-154.74467129,0.00010544,2]
[335083637,1723815031894,-1612.67783737,0.00010739,2]
[335083639,1723815031904,-4200.46525534,0.00010762,2]
[335083876,1723815037968,-15109.4533721,0.00010762,2]
[335083878,1723815037977,-191.92946164,0.00010858,2]
[335083880,1723815037987,-814.3171448,0.00010959,2]
[335083882,1723815037997,-687.98,0.00010959,2]
[335083883,1723815038007,-172.951726,0.00011261,2]
[335083884,1723815038020,-172.951726,0.00011407,2]
[335083886,1723815038029,-533.92328189,0.00011409,2]
[335083888,1723815038039,-542.94098629,0.00011409,2]
[335083890,1723815038048,-172.951726,0.00011554,2]
[335083892,1723815038058,-172.951726,0.00011701,2]
[335083894,1723815038067,-52899.81127463,0.00011712,2]
[335083896,1723815038077,-42392.12136225,0.00011712,2]
[335083898,1723815038086,-1765.67532584,0.00011731,2]
[335083900,1723815038096,-13979.78294003,0.00011842,2]
[335083901,1723815038108,-6804.89197512,0.00011842,2]
[335083903,1723815038119,-172.951726,0.00011847,2]
[335083904,1723815038128,-156.57162345,0.000119,2]
[335083906,1723815038137,-74343.5974623,0.00011977,2]
[335083908,1723815038147,-8838.10257053,0.00011987,2]
[335083909,1723815038156,-26860.81324862,0.00011989,2]
[335083911,1723815038168,-47482.78421368,0.00011989,2]
[335083913,1723815038178,-2711.75574306,0.00012516,2]
[335083915,1723815038187,-2630.01967511,0.00012516,2]
[335083917,1723815038197,-2165.54782924,0.00012551,2]
[335083918,1723815038206,-1145.21271338,0.00012564,2]
[335083920,1723815038216,-1145.21271338,0.00012717,2]
[335083922,1723815038225,-297.1870231,0.00012778,2]
[335083924,1723815038235,-1145.21271338,0.00012871,2]
[335083926,1723815038244,-155.96137292,0.00012898,2]
[335083927,1723815038254,-185.95957127,0.00012898,2]
[335083928,1723815038269,-200.0,0.00012898,2]
[335083929,1723815038284,-304.08032392,0.00012898,2]
[335083930,1723815038297,-155.16159397,0.00012898,2]
[335083931,1723815038307,-195.58847362,0.00012898,2]
[335083932,1723815038316,-520.42439304,0.00012898,2]
[335083933,1723815038327,-155.61854331,0.00012898,2]
[335083934,1723815038335,-601.6533504,0.00012898,2]
[335083935,1723815038345,-160.39523982,0.00012934,2]
[335083936,1723815038355,-569.37734184,0.00012934,2]
[335083937,1723815038365,-309.38127527,0.00012934,2]
[335083938,1723815038375,-156.93178488,0.00012934,2]
[335083939,1723815038385,-154.93824139,0.00012934,2]
[335083940,1723815038395,-246.44394435,0.00012934,2]
[335083941,1723815038404,-191.85387539,0.00012934,2]
[335083942,1723815038414,-179.02533557,0.00012934,2]
[335083943,1723815038424,-728.43490027,0.00012934,2]
[335083944,1723815038433,-433.28919733,0.00012934,2]
[335083945,1723815038443,-260.93351875,0.00012971,2]
[335083946,1723815038452,-156.65353163,0.00012971,2]
[335083947,1723815038462,-156.81279309,0.00012971,2]
[335083948,1723815038473,-155.07948823,0.00012971,2]
[335083949,1723815038483,-154.80808241,0.00012971,2]
[335083950,1723815038493,-210.46534843,0.00012971,2]
[335083951,1723815038502,-320.11477808,0.00012971,2]
[335083952,1723815038514,-2519.17766649,0.00013,2]
[335083953,1723815038524,-154.74467129,0.00013496,2]
[335083954,1723815038534,-154.74467129,0.00013496,2]
[335083955,1723815038543,-154.76012181,0.00013697,2]
[335083956,1723815038552,-3000.0,0.00013699,2]
[335083957,1723815038561,-165.270853,0.00014247,2]
[335083959,1723815038571,-165.185793,0.00014247,2]
[335083960,1723815038581,-200.0,0.00014519,2]
[335083962,1723815038590,-2192.2379403,0.00015,2]
[335083964,1723815038600,-3000.0,0.00016,2]
[335083966,1723815038609,-74343.5974623,0.00016,2]
[335083968,1723815038619,-4500.027051,0.0001601,2]
[335083969,1723815038629,-200.0,0.00016073,2]
[335083970,1723815038638,-172.62688794,0.00016073,2]
[335083971,1723815038648,-400.0,0.00017442,2]
[335083972,1723815038658,-600.0,0.00019446,2]
[335083973,1723815038668,-200.0,0.00019973,2]
[335083974,1723815038678,-200.22748533,0.00019973,2]
[335083975,1723815038687,-200.0,0.00019973,2]
[335083976,1723815038839,-74343.5974623,0.0001999,2]
[335083977,1723815038848,-294533.0,0.0001999,2]
[335083978,1723815038857,-21085.18789929,0.0002,2]
[335083979,1723815038867,-53150.52830834,0.0002,2]
[335083980,1723815038877,-243.17908813,0.0002,2]
[335083981,1723815038887,-1857.9068555,0.0002,2]
[335083982,1723815038896,-4288.58663822,0.0002,2]
[335083983,1723815038906,-165.05787817,0.0002,2]
[335083984,1723815038916,-1260.16836963,0.00020333,2]
[335083985,1723815038925,-10503.82431025,0.00020333,2]
[335083986,1723815038934,-90606.10058675,0.00020377,11]
[335083987,1723815038944,-146813.0,0.00020377,2]
[335083988,1723815038953,-15806.893378,0.000205,2]
[335083989,1723815038962,-1375.68208424,0.00020848,2]
[335083990,1723815038971,-5708.28966832,0.00021,2]
[335083991,1723815038981,-10141.8879998,0.00021,2]
[335083992,1723815038991,-400.0,0.00021342,2]
[335083993,1723815039001,-400.0,0.00021342,2]
[335083994,1723815039013,-562.69036117,0.00021787,2]
[335083995,1723815039022,-23177.15654,0.00021918,2]
[335083996,1723815039032,-1158.43244742,0.000223,2]
[335083997,1723815039041,-11394.52954582,0.00023,2]
[335083998,1723815039050,-165.270853,0.00023014,2]
[335083999,1723815039060,-200.44103282,0.00023346,2]
[335084000,1723815039069,-600.0,0.00023346,2]
[335084001,1723815039078,-74343.5974623,0.00023724,3]
[335084002,1723815039087,-14579.03734397,0.00024646,7]
[335084003,1723815039097,-952.97302419,0.00024657,2]
[335084004,1723815039107,-882.51902373,0.00024847,2]
[335084005,1723815039117,-782.12449386,0.00024859,2]
[335084006,1723815039127,-1110.39279741,0.00024875,2]
[335084007,1723815039138,-1900.0,0.00025072,2]
[335084008,1723815039148,-1100.0,0.00025132,2]
[335084009,1723815039158,-600.0,0.00025147,2]
[335084010,1723815039167,-5000.0,0.00025182,2]
[335084011,1723815039177,-1900.0,0.00025256,2]
[335084012,1723815039187,-600.0,0.00025349,2]
[335084013,1723815039196,-1900.0,0.00025365,2]
[335084014,1723815039205,-800.0,0.00025687,2]
[335084015,1723815039215,-600.0,0.00025692,2]
[335084016,1723815039224,-1900.0,0.00025905,2]
[335084017,1723815039234,-1900.0,0.00025969,2]
[335084018,1723815039243,-1900.0,0.00026185,2]
[335084019,1723815039253,-475.93383457,0.00026323,2]
[335084020,1723815039263,-600.0,0.00026349,2]
[335084021,1723815039274,-159.19,0.000266,31]
[335084022,1723815039289,-1900.0,0.00026651,2]
[335084024,1723815039299,-21604.46782833,0.000267,2]
[335084025,1723815039308,-1900.0,0.00026745,2]
[335084026,1723815039317,-600.0,0.00027095,2]
[335084027,1723815039328,-600.0,0.00027327,2]
[335084028,1723815039338,-1208.12,0.000274,7]
[335084029,1723815039347,-3605.27,0.000274,14]
[335084030,1723815039358,-68059.43,0.000274,14]
[335084031,1723815039368,-153.876601,0.000274,7]
[335084032,1723815039378,-151.0,0.000274,7]
[335084033,1723815039388,-151.0,0.000274,7]
[335084035,1723815039398,-1100.0,0.00027484,2]
[335084036,1723815039407,-1900.0,0.0002751,2]
[335084037,1723815039417,-1100.0,0.00027513,2]
[335084038,1723815039427,-1025.540304,0.000276,7]
[335084039,1723815039436,-465.54669173,0.0002764,2]
[335084040,1723815039446,-1100.0,0.00027766,2]
[335084041,1723815039456,-1100.0,0.00027874,2]
[335084042,1723815039466,-1000.0,0.00028,120]
[335084043,1723815039475,-1000.0,0.000281,7]
[335084045,1723815039485,-1000.0,0.00028278,4]
[335084047,1723815039494,-600.0,0.00028321,2]
[335084050,1723815039504,-1900.0,0.00028326,2]
[335084053,1723815039515,-600.0,0.00028389,2]
[335084055,1723815039525,-200.0,0.00028571,5]
[335084057,1723815039535,-1000.0,0.000286,7]
[335084059,1723815039545,-1900.0,0.00028828,2]
[335084061,1723815039554,-1100.0,0.00028852,2]
[335084062,1723815039564,-600.0,0.00028988,2]
[335084063,1723815039574,-1900.0,0.00028995,2]
[335084064,1723815039583,-1000.0,0.000291,7]
[335084065,1723815039593,-1900.0,0.0002942,2]
[335084066,1723815039603,-5000.0,0.00029515,7]
[335084067,1723815039612,-1000.0,0.000296,7]
[335084068,1723815039622,-600.0,0.00029604,2]
[335084070,1723815039631,-1100.0,0.00029658,2]
[335084072,1723815039641,-212651.45730004,0.00029828,2]
[335084093,1723815040015,-154.74467129,0.00010544,2]
[335084094,1723815040025,-180.69959783,0.00012898,2]
[335084095,1723815040034,-416.16100045,0.00020377,11]
[335084096,1723815040044,-2404.92169684,0.00029828,2]
[335084097,1723815040056,-105721.03039378,0.00029828,2]
[335084099,1723815040066,-272.395865,0.00029828,7]
[335084101,1723815040075,-272.395865,0.00029828,7]
[335084103,1723815040086,-151.0,0.00029828,7]
[335084105,1723815040095,-151.0,0.00029828,7]
[335084107,1723815040104,-2603.753585,0.00029828,7]
[335084109,1723815040114,-2603.753585,0.00029828,7]
[335084111,1723815040123,-1337.049132,0.00029828,7]
[335084113,1723815040133,-151.0,0.00029828,7]
[335084115,1723815040143,-1337.049132,0.00029828,7]
[335084117,1723815040153,-151.0,0.00029828,7]
[335084119,1723815040162,-199.929493,0.00029828,7]
[335084121,1723815040172,-3000.0,0.000299,2]
[335084123,1723815040181,-500.0,0.00029909,2]
[335084125,1723815040190,-505.12022929,0.00029909,2]
[335084127,1723815040200,-3000.0,0.0002991,2]
[335084129,1723815040210,-3000.0,0.0002992,2]
[335084131,1723815040219,-3000.0,0.0002993,2]
[335084133,1723815040229,-3000.0,0.0002994,2]
[335084135,1723815040238,-400.0,0.00029941,5]
[335084137,1723815040248,-3000.0,0.0002995,2]
[335084139,1723815040258,-3000.0,0.0002996,2]
[335084141,1723815040271,-3000.0,0.0002997,2]
[335084143,1723815040281,-3000.0,0.0002998,2]
[335084145,1723815040295,-3000.0,0.0002999,2]
[335084147,1723815040305,-3000.0,0.0003,2]
[335084149,1723815040315,-3000.0,0.0003001,2]
[335084151,1723815040324,-3000.0,0.0003002,2]
[335084153,1723815040335,-3000.0,0.0003003,2]
[335084155,1723815040345,-3000.0,0.0003004,2]
[335084157,1723815040354,-3000.0,0.0003005,2]
[335084159,1723815040364,-3000.0,0.0003006,2]
[335084161,1723815040373,-3000.0,0.0003007,2]
[335084163,1723815040382,-3000.0,0.0003008,2]
[335084165,1723815040392,-3000.0,0.0003009,2]
[335084167,1723815040401,-3000.0,0.000301,2]
[335084169,1723815040411,-1000.0,0.000301,7]
[335084171,1723815040421,-600.0,0.00030107,7]
[335084173,1723815040431,-3000.0,0.0003011,2]
[335084175,1723815040441,-3000.0,0.0003012,2]
[335084177,1723815040450,-3000.0,0.0003013,3]
[335084179,1723815040460,-3000.0,0.0003014,3]
[335084181,1723815040470,-3000.0,0.0003015,3]
[335084183,1723815040479,-3000.0,0.0003016,3]
[335084185,1723815040488,-3000.0,0.0003017,3]
[335084187,1723815040498,-3000.0,0.0003018,3]
[335084189,1723815040508,-3000.0,0.0003019,3]
[335084192,1723815040520,-3000.0,0.000302,3]
[335084194,1723815040530,-3000.0,0.0003021,3]
[335084196,1723815040539,-3000.0,0.0003022,3]
[335084197,1723815040549,-3000.0,0.0003023,3]
[335084200,1723815040559,-3000.0,0.0003024,3]
[335084201,1723815040569,-3000.0,0.0003025,3]
[335084203,1723815040578,-3000.0,0.0003026,3]
[335084205,1723815040588,-3000.0,0.0003027,3]
[335084207,1723815040597,-3000.0,0.0003028,3]
[335084209,1723815040607,-3000.0,0.0003029,3]
[335084211,1723815040617,-3000.0,0.000303,3]
[335084213,1723815040626,-1208.12,0.000303,7]
[335084215,1723815040635,-3000.0,0.0003031,3]
[335084217,1723815040645,-3000.0,0.0003032,3]
[335084219,1723815040655,-3000.0,0.0003033,3]
[335084221,1723815040664,-3000.0,0.0003034,3]
[335084223,1723815040673,-3000.0,0.0003035,3]
[335084224,1723815040683,-3000.0,0.0003036,3]
[335084226,1723815040693,-4342.457628,0.0003037,3]
[335084227,1723815040703,-600.0,0.00030384,7]
[335084228,1723815040713,-3605.27,0.000304,14]
[335084229,1723815040722,-68059.43,0.000304,14]
[335084230,1723815040732,-1900.0,0.00030486,7]
[335084231,1723815040741,-1000.0,0.000306,7]
[335084233,1723815040751,-600.0,0.00030629,7]
[335084235,1723815040760,-1200.0,0.00031073,4]
[335084237,1723815040773,-35534.61769023,0.000311,2]
[335084239,1723815040782,-1000.0,0.000311,7]
[335084241,1723815040792,-1900.0,0.0003136,7]
[335084243,1723815040801,-159.19,0.000315,31]
[335084245,1723815040812,-1000.0,0.000316,7]
[335084247,1723815040821,-1100.0,0.00031677,7]
[335084249,1723815040830,-1900.0,0.00031692,7]
[335084251,1723815040839,-1900.0,0.00031711,7]
[335084253,1723815040849,-1900.0,0.00031734,7]
[335084255,1723815040860,-165.270853,0.00031781,2]
[335084257,1723815040871,-272.395865,0.00031884,7]
[335084259,1723815040880,-272.395865,0.00031884,7]
[335084261,1723815040890,-272.395865,0.00031884,7]
[335084263,1723815040899,-272.395865,0.00031884,7]
[335084265,1723815040909,-151.0,0.00031884,7]
[335084266,1723815040918,-153.525346,0.00031884,7]
[335084268,1723815040927,-151.0,0.00031884,7]
[335084270,1723815040937,-151.0,0.00031884,7]
[335084272,1723815040946,-2603.753585,0.00031884,7]
[335084274,1723815040956,-2603.753585,0.00031884,7]
[335084276,1723815040965,-2603.753585,0.00031884,7]
[335084278,1723815040975,-2603.753585,0.00031884,7]
[335084280,1723815040984,-1337.049132,0.00031884,7]
[335084282,1723815040993,-1337.049132,0.00031884,7]
[335084284,1723815041004,-151.0,0.00031884,7]
[335084286,1723815041016,-151.0,0.00031884,7]
[335084288,1723815041025,-1337.049132,0.00031884,7]
[335084290,1723815041034,-1337.049132,0.00031884,7]
[335084292,1723815041043,-151.0,0.00031884,7]
[335084294,1723815041053,-151.0,0.00031884,7]
[335084296,1723815041063,-150.0,0.00031884,14]
[335084298,1723815041072,-150.0,0.00031884,14]
[335084300,1723815041081,-200.0,0.00031884,14]
[335084302,1723815041091,-22043.08058319,0.00031884,7]
[335084304,1723815041101,-6044.59356258,0.00031884,30]
[335084306,1723815041110,-11550.02268888,0.00031884,30]
[335084308,1723815041119,-5323.66227867,0.00031884,30]
[335084310,1723815041129,-40160.18440495,0.00031884,7]
[335084520,1723815044276,-163.730206,0.00013362,2]
[335084521,1723815044289,-140.232294,0.00013462,2]
[335085716,1723816046160,-231.99090105,0.00011987,2]
[335085717,1723816046184,-2711.75574306,0.00012779,2]
[335085718,1723816046210,-568.32310258,0.00012991,2]
[335085719,1723816046231,-520.2055012,0.00012991,2]
[335085720,1723816046253,-160.33534964,0.00012999,2]
[335085721,1723816046276,-156.81279309,0.00013051,2]
[335085722,1723816046300,-167.646524,0.00013278,2]
[335085723,1723816046321,-158.01490399,0.00013333,2]
[335085724,1723816046344,-167.646524,0.00013417,2]
[335085725,1723816046366,-167.646524,0.00013555,2]
[335085726,1723816046387,-301.25996446,0.00013596,2]
[335085727,1723816046411,-32.05771644,0.00013694,2]
[335085738,1723816148196,-135.58880756,0.00013694,2]
[335085739,1723816148220,-1452.5442648,0.00013699,2]
[335085740,1723816148243,-159.96301472,0.00013792,2]
[335085741,1723816148267,-167.646524,0.00013832,2]
[335085742,1723816148290,-167.646524,0.0001397,2]
[335085743,1723816148315,-165.185793,0.00014247,2]
[335085744,1723816148339,-165.270853,0.00014247,2]
[335085745,1723816148363,-1257.61346426,0.00014519,2]
[335085746,1723816148385,-214.48926857,0.00014519,2]
[335085747,1723816148408,-4652.9469304,0.00015,2]
[335085748,1723816148433,-11369.68745549,0.00017557,2]
[335085750,1723816157134,-2164.8580104,0.00013971,2]
[335085751,1723816157158,-4665.7883732,0.00017557,2]
[335085762,1723816165111,-8864.52417131,0.00017557,2]
[335085763,1723816165132,-205.826204,0.00019178,2]
[335085764,1723816165153,-1260.16836963,0.0002,2]
[335085765,1723816165173,-2606.49706184,0.000203,2]
[335085766,1723816165194,-811.0577338,0.0002217,2]
[335085767,1723816165351,-952.97302419,0.00024319,2]
[335085768,1723816165373,-165.270853,0.00024475,2]
[335085769,1723816165395,-1110.39279741,0.00024498,2]
[335085770,1723816165418,-565.25783371,0.00025065,2]
[335085809,1723816232036,-1260.16836963,0.00021281,2]
[335085811,1723816232046,-925.38863037,0.00021281,2]
[335085886,1723816238140,-27.58439382,0.00021281,2]
[335085887,1723816238151,-234.74216629,0.00025065,2]
[335085889,1723816238161,-800.0,0.00025235,2]
[335085891,1723816238171,-800.0,0.00025439,2]
[335085892,1723816238185,-1400.0,0.00025463,2]
[335085893,1723816238195,-1400.0,0.00025773,2]
[335085894,1723816238204,-500.0,0.00025831,2]
[335085895,1723816238214,-1400.0,0.00025939,2]
[335085896,1723816238225,-1500.0,0.00026097,2]
[335085897,1723816238237,-1500.0,0.00026235,2]
[335085898,1723816238247,-1500.0,0.00026259,2]
[335085899,1723816238259,-1400.0,0.00026307,2]
[335085900,1723816238269,-800.0,0.00026565,2]
[335085901,1723816238278,-159.21,0.000266,31]
[335085902,1723816238287,-1500.0,0.00026843,2]
[335085903,1723816238297,-1400.0,0.00026882,2]
[335085904,1723816238307,-800.0,0.00026901,2]
[335085905,1723816238316,-1366.2545894,0.0002696,2]
[335085906,1723816238326,-1400.0,0.0002706,2]
[335085907,1723816238336,-500.0,0.00027192,2]
[335085908,1723816238345,-1400.0,0.00027292,2]
[335085909,1723816238355,-1500.0,0.00027293,2]
[335085910,1723816238364,-500.0,0.00027415,2]
[335085911,1723816238374,-1400.0,0.00027745,2]
[335085913,1723816238384,-1400.0,0.00027861,2]
[335085914,1723816238393,-1366.25458938,0.0002812,2]
[335085915,1723816238403,-500.0,0.00028262,2]
[335085916,1723816238414,-500.0,0.0002838,2]
[335085917,1723816238426,-2283.53421912,0.00028894,2]
[335085918,1723816238435,-1400.0,0.0002899,2]
[335085919,1723816238445,-1400.0,0.00028994,2]
[335085920,1723816238455,-1400.0,0.00029056,2]
[335085921,1723816238465,-500.0,0.00029232,2]
[335085922,1723816238474,-1366.25458938,0.0002928,2]
[335085923,1723816238484,-500.0,0.00029281,2]
[335085924,1723816238494,-800.0,0.00029534,2]
[335085925,1723816238504,-500.0,0.00029546,2]
[335085926,1723816238514,-500.0,0.00029687,2]
[335085927,1723816238523,-500.0,0.0002987,2]
[335085928,1723816238533,-3000.0,0.000299,2]
[335085929,1723816238543,-3000.0,0.0002991,2]
[335085930,1723816238552,-1500.0,0.00029911,2]
[335085931,1723816238562,-3000.0,0.0002992,2]
[335085932,1723816238571,-3000.0,0.0002993,2]
[335085933,1723816238581,-67592.5719591,0.0002993,4]
[335085934,1723816238591,-3000.0,0.0002994,2]
[335085935,1723816238601,-3000.0,0.0002995,2]
[335085936,1723816238610,-3000.0,0.0002996,2]
[335085937,1723816238621,-300.0375095,0.0002997,2]
[335085938,1723816238635,-2699.9624905,0.0002997,2]
[335085939,1723816238646,-3000.0,0.0002998,2]
[335085940,1723816238656,-3000.0,0.0002999,2]
[335085941,1723816238666,-968.42852571,0.0003,2]
[335085942,1723816238678,-3000.0,0.0003,2]
[335085943,1723816238688,-1000.0,0.0003,30]
[335085944,1723816238698,-3000.0,0.0003001,2]
[335085945,1723816238708,-3000.0,0.0003002,2]
[335085946,1723816238723,-3000.0,0.0003003,2]
[335085947,1723816238733,-3000.0,0.0003004,2]
[335085948,1723816238743,-3000.0,0.0003005,2]
[335085949,1723816238752,-596.60898377,0.00030057,2]
[335085950,1723816238765,-4295.49876005,0.00030057,2]
[335085951,1723816238775,-1759.04945295,0.0003006,2]
[335085952,1723816238800,-1240.95054705,0.0003006,2]
[335085953,1723816238811,-67592.5719591,0.0003006,4]
[335085954,1723816238821,-3000.0,0.0003007,2]
[335085955,1723816238831,-3000.0,0.0003008,2]
[335085956,1723816238841,-3000.0,0.0003009,2]
[335085957,1723816238851,-3000.0,0.000301,2]
[335085958,1723816238860,-1000.0,0.000301,7]
[335085959,1723816238870,-1583.37321828,0.0003011,2]
[335085960,1723816238883,-1416.62678172,0.0003011,2]
[335085961,1723816238892,-1265.30842346,0.0003012,2]
[335086022,1723816240600,-426.61430935,0.0003012,2]
[335086030,1723816240667,-1308.07726719,0.0003012,2]
[335086032,1723816240683,-3000.0,0.0003013,3]
[335086034,1723816240696,-3000.0,0.0003014,3]
[335086036,1723816240707,-3000.0,0.0003015,3]
[335086038,1723816240718,-3000.0,0.0003016,3]
[335086040,1723816240728,-3000.0,0.0003017,3]
[335086042,1723816240738,-4342.457628,0.0003018,3]
[335086045,1723816240749,-800.0,0.00030294,7]
[335086048,1723816240759,-4892.10774382,0.00030361,2]
[335086051,1723816240769,-800.0,0.00030373,7]
[335086054,1723816240779,-1366.25458938,0.0003044,2]